{"text_format":"1","workbook":"xlsx","n_sheets":1,"sheets":["Droites"],"not_rendered":{"charts":0,"images":6,"macros":1,"external_links":0,"defined_names":26,"comments":0,"pivot_tables":0},"unopened":[],"bounds":{"document_bytes":16777216,"sheet_cells":100000,"rows_first":2000,"rows_last":500,"rows_between":2000,"halvings":0,"cell_chars":16384,"cell_head_chars":4096},"cells_cut":0,"cells_raw":0,"read":"whole","date_system":"1900"}

{"sheet":"Droites","index":0,"n_rows":118,"n_cols":96,"rows_kept":118,"cut":false,"hidden":false,"merged":[[117,4,117,5],[117,17,117,18],[117,29,117,30],[117,36,117,37],[117,42,117,43],[117,47,117,48],[117,51,117,52],[115,4,115,5],[115,17,115,18],[115,29,115,30],[115,36,115,37],[115,42,115,43],[115,47,115,48],[115,51,115,52],[116,4,116,5],[116,17,116,18],[116,29,116,30],[116,36,116,37],[116,42,116,43],[116,47,116,48],[116,51,116,52],[56,29,56,30],[57,29,57,30],[58,29,58,30],[56,4,56,5],[57,4,57,5],[58,4,58,5],[56,47,56,48],[57,47,57,48],[58,47,58,48],[56,17,56,18],[57,17,57,18],[58,17,58,18],[56,42,56,43],[57,42,57,43],[58,42,58,43],[56,36,56,37],[57,36,57,37],[58,36,58,37],[117,67,117,68],[8,31,8,32],[9,31,9,32],[10,31,10,32],[8,51,8,52],[9,51,9,52],[10,51,10,52],[8,22,8,23],[9,22,9,23],[10,22,10,23],[67,22,67,23],[67,31,67,32],[67,51,67,52],[68,22,68,23],[68,31,68,32],[68,51,68,52],[69,22,69,23],[69,31,69,32],[69,51,69,52],[20,48,20,49],[21,48,21,49],[22,48,22,49],[20,53,20,54],[21,53,21,54],[105,2,105,3],[105,23,105,24],[105,40,105,41],[105,48,105,49],[105,25,105,26],[105,37,105,38],[105,51,105,52],[105,73,105,74],[104,2,104,3],[104,23,104,24],[104,40,104,41],[104,48,104,49],[104,25,104,26],[104,37,104,38],[104,51,104,52],[104,73,104,74],[103,2,103,3],[103,23,103,24],[103,40,103,41],[103,48,103,49],[103,25,103,26],[103,37,103,38],[103,51,103,52],[103,73,103,74],[44,2,44,3],[45,2,45,3],[46,2,46,3],[44,48,44,49],[45,48,45,49],[46,48,46,49],[44,23,44,24],[45,23,45,24],[46,23,46,24],[44,40,44,41],[45,40,45,41],[46,40,46,41],[44,25,44,26],[45,25,45,26],[46,25,46,26],[44,37,44,38],[45,37,45,38],[46,37,46,38],[44,73,44,74],[45,73,45,74],[46,73,46,74],[44,51,44,52],[45,51,45,52],[46,51,46,52],[91,77,91,78],[92,45,92,46],[92,77,92,78],[93,45,93,46],[93,77,93,78],[91,6,91,7],[91,10,91,11],[91,13,91,14],[91,63,91,64],[91,74,91,75],[92,6,92,7],[92,10,92,11],[92,13,92,14],[92,63,92,64],[32,77,32,78],[33,77,33,78],[34,77,34,78],[32,6,32,7],[33,6,33,7],[34,6,34,7],[32,13,32,14],[33,13,33,14],[34,13,34,14],[32,10,32,11],[33,10,33,11],[34,10,34,11],[32,63,32,64],[33,63,33,64],[34,63,34,64],[32,74,32,75],[33,74,33,75],[34,74,34,75],[67,74,67,75],[68,74,68,75],[69,74,69,75],[8,74,8,75],[9,74,9,75],[10,74,10,75],[69,54,69,55],[69,65,69,66],[69,9,69,10],[68,54,68,55],[68,65,68,66],[68,9,68,10],[60,9,60,10],[60,29,60,30],[60,49,60,50],[60,69,60,70],[67,54,67,55],[67,65,67,66],[67,9,67,10],[1,69,1,70],[8,65,8,66],[9,65,9,66],[10,65,10,66],[8,54,8,55],[9,54,9,55],[81,6,81,7],[81,1,81,2],[81,48,81,49],[81,53,81,54],[81,63,81,64],[80,6,80,7],[80,1,80,2],[80,48,80,49],[80,53,80,54],[80,63,80,64],[72,9,72,10],[72,19,72,20],[72,39,72,40],[72,49,72,50],[72,69,72,70],[79,6,79,7],[79,1,79,2],[79,48,79,49],[79,53,79,54],[79,63,79,64],[20,6,20,7],[21,6,21,7],[22,6,22,7],[20,1,20,2],[21,1,21,2],[22,1,22,2],[13,9,13,10],[13,19,13,20],[13,39,13,40],[13,49,13,50],[13,69,13,70],[93,31,93,32],[93,6,93,7],[93,10,93,11],[93,13,93,14],[93,63,93,64],[93,74,93,75],[92,31,92,32],[91,45,91,46],[92,74,92,75],[84,9,84,10],[84,19,84,20],[84,29,84,30],[84,49,84,50],[84,59,84,60],[84,69,84,70],[91,31,91,32],[32,31,32,32],[33,31,33,32],[34,31,34,32],[32,45,32,46],[33,45,33,46],[34,45,34,46],[25,9,25,10],[25,19,25,20],[25,29,25,30],[25,49,25,50],[25,59,25,60],[25,69,25,70],[115,67,115,68],[116,67,116,68],[56,67,56,68],[57,67,57,68],[58,67,58,68],[56,51,56,52],[57,51,57,52],[58,51,58,52],[104,5,104,6],[105,5,105,6],[44,5,44,6],[45,5,45,6],[46,5,46,6],[103,5,103,6],[80,15,80,16],[81,15,81,16],[20,15,20,16],[21,15,21,16],[22,15,22,16],[22,53,22,54],[20,63,20,64],[21,63,21,64],[22,63,22,64],[68,39,68,40],[69,39,69,40],[8,39,8,40],[9,39,9,40],[10,39,10,40],[10,54,10,55],[115,22,115,23],[116,22,116,23],[117,22,117,23],[56,22,56,23],[57,22,57,23],[58,22,58,23],[103,59,103,60],[104,59,104,60],[105,59,105,60],[44,59,44,60],[45,59,45,60],[46,59,46,60],[67,39,67,40],[79,15,79,16],[32,37,32,38],[33,37,33,38],[34,37,34,38],[20,21,20,22],[21,21,21,22],[22,21,22,22],[117,25,117,26],[8,61,8,62],[9,61,9,62],[10,61,10,62],[67,61,67,62],[68,61,68,62],[69,61,69,62],[20,11,20,12],[115,25,115,26],[116,25,116,26],[56,25,56,26],[57,25,57,26],[58,25,58,26],[79,11,79,12],[79,21,79,22],[80,11,80,12],[80,21,80,22],[81,11,81,12],[81,21,81,22],[91,71,91,72],[92,71,92,72],[93,71,93,72],[91,37,91,38],[92,37,92,38],[93,37,93,38],[81,34,81,35],[81,43,81,44],[32,71,32,72],[33,71,33,72],[34,71,34,72],[79,34,79,35],[79,43,79,44],[80,34,80,35],[80,43,80,44],[21,11,21,12],[22,11,22,12],[20,34,20,35],[21,34,21,35],[22,34,22,35],[20,43,20,44],[21,43,21,44],[22,43,22,44],[8,9,8,10],[9,9,9,10],[10,9,10,10],[0,81,0,90],[1,81,1,90],[84,39,84,40],[37,69,37,70],[1,59,1,60],[8,45,8,46],[9,45,9,46],[10,45,10,46],[49,29,49,30],[37,81,37,90],[48,81,48,90],[49,81,49,90],[16,100,16,101],[68,45,68,46],[69,45,69,46],[37,49,37,50],[49,59,49,60],[37,59,37,60],[37,9,37,10],[37,19,37,20],[37,29,37,30],[37,39,37,40],[13,59,13,60],[108,29,108,30],[108,59,108,60],[108,9,108,10],[108,19,108,20],[108,49,108,50],[108,39,108,40],[49,69,49,70],[49,9,49,10],[9,95,9,110],[10,95,10,110],[11,95,11,110],[12,95,12,110],[72,59,72,60],[60,59,60,60],[96,49,96,50],[96,59,96,60],[96,69,96,70],[96,29,96,30],[96,39,96,40],[96,9,96,10],[96,19,96,20],[1,19,1,20],[1,39,1,40],[1,9,1,10],[1,29,1,30],[1,49,1,50],[60,19,60,20],[60,39,60,40],[13,29,13,30],[49,19,49,20],[49,39,49,40],[36,95,36,108],[32,95,32,110],[12,81,12,90],[13,81,13,90],[24,81,24,90],[25,81,25,90],[36,81,36,90],[72,29,72,30],[108,69,108,70],[25,39,25,40],[67,45,67,46],[49,49,49,50]]}
["A",null,null,null,null,null,null,null,null,null,null,null,null,null,null,null,null,null,null,null,null,null,null,null,null,null,null,null,null,null,null,null,null,null,null,null,null,null,null,null,null,null,null,null,null,null,null,null,null,null,null,null,null,null,null,null,null,null,null,null,null,null,null,null,null,null,null,null,null,null,null,null,{"$f":"$CO$1","v":"Fiche 756"},null,null,null,null,null,null,null,10,"dénominateur",null,null,null,null,null,null,null,null,null,null,{"$f":"CONCATENATE(\"Fiche \", RANDBETWEEN(200,900))","v":"Fiche 756"}]
[null,null,null,null,null,null,null,null,null,1,null,null,null,null,null,null,null,null,null,2,null,null,null,null,null,null,null,null,null,3,null,null,null,null,null,null,null,null,null,4,null,null,null,null,null,null,null,null,null,5,null,null,null,null,null,null,null,null,null,6,null,null,null,null,null,null,null,null,null,7,null,null,null,null,null,null,null,null,null,null,10,"nombre de fractions sur la droite"]
[]
[]
[]
[]
[]
[]
[null,null,null,null,null,null,null,null,null,"↑",null,null,null,null,null,null,null,null,null,null,null,null,"↑",null,null,null,null,null,null,null,null,"↑",null,null,null,null,null,null,null,"↑",null,null,null,null,null,"↑",null,null,null,null,null,"↑",null,null,"↑",null,null,null,null,null,null,"↑",null,null,null,"↑",null,null,null,null,null,null,null,null,"↑"]
[null,null,null,null,null,null,null,null,null,{"$f":"COLUMN()","v":10},null,null,null,null,null,null,null,null,null,null,null,null,{"$f":"COLUMN()","v":23},null,null,null,null,null,null,null,null,{"$f":"COLUMN()","v":32},null,null,null,null,null,null,null,{"$f":"COLUMN()","v":40},null,null,null,null,null,{"$f":"COLUMN()","v":46},null,null,null,null,null,{"$f":"COLUMN()","v":52},null,null,{"$f":"COLUMN()","v":55},null,null,null,null,null,null,{"$f":"COLUMN()","v":62},null,null,null,{"$f":"COLUMN()","v":66},null,null,null,null,null,null,null,null,{"$f":"COLUMN()","v":75},null,null,null,null,null,null,null,null,null,null,null,null,null,null,null,null,null,null,null,null,"1. Sélectionne le dénominateur voulu."]
[null,null,null,null,null,null,null,null,null,{"$f":"10","v":10},null,null,null,null,null,null,null,null,null,null,null,null,{"$f":"10","v":10},null,null,null,null,null,null,null,null,{"$f":"10","v":10},null,null,null,null,null,null,null,{"$f":"10","v":10},null,null,null,null,null,{"$f":"10","v":10},null,null,null,null,null,{"$f":"10","v":10},null,null,{"$f":"10","v":10},null,null,null,null,null,null,{"$f":"10","v":10},null,null,null,{"$f":"10","v":10},null,null,null,null,null,null,null,null,{"$f":"10","v":10},null,null,null,null,null,null,null,null,null,null,null,null,null,null,null,null,null,null,null,null,"2. Choisis la quantité de fractions voulue."]
[null,null,null,null,null,null,null,null,null,null,null,null,null,null,null,null,null,null,null,null,null,null,null,null,null,null,null,null,null,null,null,null,null,null,null,null,null,null,null,null,null,null,null,null,null,null,null,null,null,null,null,null,null,null,null,null,null,null,null,null,null,null,null,null,null,null,null,null,null,null,null,null,null,null,null,null,null,null,null,null,null,null,null,null,null,null,null,null,null,null,null,null,null,null,null,"3. Clique sur le bouton \"Fractionner\"."]
["B",null,null,null,null,null,null,null,null,null,null,null,null,null,null,null,null,null,null,null,null,null,null,null,null,null,null,null,null,null,null,null,null,null,null,null,null,null,null,null,null,null,null,null,null,null,null,null,null,null,null,null,null,null,null,null,null,null,null,null,null,null,null,null,null,null,null,null,null,null,null,null,null,null,null,null,null,null,null,null,10,"dénominateur",null,null,null,null,null,null,null,null,null,null,null,null,null,"4. Masque les réponses en cliquant sur le bouton \"Masquer\""]
[null,null,null,null,null,null,null,null,null,1,null,null,null,null,null,null,null,null,null,2,null,null,null,null,null,null,null,null,null,3,null,null,null,null,null,null,null,null,null,4,null,null,null,null,null,null,null,null,null,5,null,null,null,null,null,null,null,null,null,6,null,null,null,null,null,null,null,null,null,7,null,null,null,null,null,null,null,null,null,null,10,"nombre de fractions sur la droite"]
[]
[]
[]
[]
[]
[]
[null,"↑",null,null,null,null,"↑",null,null,null,null,"↑",null,null,null,"↑",null,null,null,null,null,"↑",null,null,null,null,null,null,null,null,null,null,null,null,"↑",null,null,null,null,null,null,null,null,"↑",null,null,null,null,"↑",null,null,null,null,"↑",null,null,null,null,null,null,null,null,null,"↑"]
[null,{"$f":"COLUMN()","v":2},null,null,null,null,{"$f":"COLUMN()","v":7},null,null,null,null,{"$f":"COLUMN()","v":12},null,null,null,{"$f":"COLUMN()","v":16},null,null,null,null,null,{"$f":"COLUMN()","v":22},null,null,null,null,null,null,null,null,null,null,null,null,{"$f":"COLUMN()","v":35},null,null,null,null,null,null,null,null,{"$f":"COLUMN()","v":44},null,null,null,null,{"$f":"COLUMN()","v":49},null,null,null,null,{"$f":"COLUMN()","v":54},null,null,null,null,null,null,null,null,null,{"$f":"COLUMN()","v":64}]
[null,{"$f":"10","v":10},null,null,null,null,{"$f":"10","v":10},null,null,null,null,{"$f":"10","v":10},null,null,null,{"$f":"10","v":10},null,null,null,null,null,{"$f":"10","v":10},null,null,null,null,null,null,null,null,null,null,null,null,{"$f":"10","v":10},null,null,null,null,null,null,null,null,{"$f":"10","v":10},null,null,null,null,{"$f":"10","v":10},null,null,null,null,{"$f":"10","v":10},null,null,null,null,null,null,null,null,null,{"$f":"10","v":10}]
[]
["C",null,null,null,null,null,null,null,null,null,null,null,null,null,null,null,null,null,null,null,null,null,null,null,null,null,null,null,null,null,null,null,null,null,null,null,null,null,null,null,null,null,null,null,null,null,null,null,null,null,null,null,null,null,null,null,null,null,null,null,null,null,null,null,null,null,null,null,null,null,null,null,null,null,null,null,null,null,null,null,10,"dénominateur"]
[null,null,null,null,null,null,null,null,null,1,null,null,null,null,null,null,null,null,null,2,null,null,null,null,null,null,null,null,null,3,null,null,null,null,null,null,null,null,null,4,null,null,null,null,null,null,null,null,null,5,null,null,null,null,null,null,null,null,null,6,null,null,null,null,null,null,null,null,null,7,null,null,null,null,null,null,null,null,null,null,10,"nombre de fractions sur la droite"]
[]
[]
[]
[]
[]
[]
[null,null,null,null,null,null,"↑",null,null,null,"↑",null,null,"↑",null,null,null,null,null,null,null,null,null,null,null,null,null,null,null,null,null,"↑",null,null,null,null,null,"↑",null,null,null,null,null,null,null,"↑",null,null,null,null,null,null,null,null,null,null,null,null,null,null,null,null,null,"↑",null,null,null,null,null,null,null,"↑",null,null,"↑",null,null,"↑",null,null,null,null,null,null,null,null,null,null,null,null,null,null,null,null,null,"A l'ouverture du fichier, il faut activer les macros."]
[null,null,null,null,null,null,{"$f":"COLUMN()","v":7},null,null,null,{"$f":"COLUMN()","v":11},null,null,{"$f":"COLUMN()","v":14},null,null,null,null,null,null,null,null,null,null,null,null,null,null,null,null,null,{"$f":"COLUMN()","v":32},null,null,null,null,null,{"$f":"COLUMN()","v":38},null,null,null,null,null,null,null,{"$f":"COLUMN()","v":46},null,null,null,null,null,null,null,null,null,null,null,null,null,null,null,null,null,{"$f":"COLUMN()","v":64},null,null,null,null,null,null,null,{"$f":"COLUMN()","v":72},null,null,{"$f":"COLUMN()","v":75},null,null,{"$f":"COLUMN()","v":78}]
[null,null,null,null,null,null,{"$f":"10","v":10},null,null,null,{"$f":"10","v":10},null,null,{"$f":"10","v":10},null,null,null,null,null,null,null,null,null,null,null,null,null,null,null,null,null,{"$f":"10","v":10},null,null,null,null,null,{"$f":"10","v":10},null,null,null,null,null,null,null,{"$f":"10","v":10},null,null,null,null,null,null,null,null,null,null,null,null,null,null,null,null,null,{"$f":"10","v":10},null,null,null,null,null,null,null,{"$f":"10","v":10},null,null,{"$f":"10","v":10},null,null,{"$f":"10","v":10}]
[]
["D",null,null,null,null,null,null,null,null,null,null,null,null,null,null,null,null,null,null,null,null,null,null,null,null,null,null,null,null,null,null,null,null,null,null,null,null,null,null,null,null,null,null,null,null,null,null,null,null,null,null,null,null,null,null,null,null,null,null,null,null,null,null,null,null,null,null,null,null,null,null,null,null,null,null,null,null,null,null,null,10,"dénominateur",null,null,null,null,null,null,null,null,null,null,null,null,null,"Télécharger Excel 2007 viewer"]
[null,null,null,null,null,null,null,null,null,1,null,null,null,null,null,null,null,null,null,2,null,null,null,null,null,null,null,null,null,3,null,null,null,null,null,null,null,null,null,4,null,null,null,null,null,null,null,null,null,5,null,null,null,null,null,null,null,null,null,6,null,null,null,null,null,null,null,null,null,7,null,null,null,null,null,null,null,null,null,null,10,"nombre de fractions sur la droite"]
[]
[]
[]
[]
[]
[]
[null,null,"↑",null,null,"↑",null,null,null,null,null,null,null,null,null,null,null,null,null,null,null,null,null,"↑",null,"↑",null,null,null,null,null,null,null,null,null,null,null,"↑",null,null,"↑",null,null,null,null,null,null,null,"↑",null,null,"↑",null,null,null,null,null,null,null,"↑",null,null,null,null,null,null,null,null,null,null,null,null,null,"↑"]
[null,null,{"$f":"COLUMN()","v":3},null,null,{"$f":"COLUMN()","v":6},null,null,null,null,null,null,null,null,null,null,null,null,null,null,null,null,null,{"$f":"COLUMN()","v":24},null,{"$f":"COLUMN()","v":26},null,null,null,null,null,null,null,null,null,null,null,{"$f":"COLUMN()","v":38},null,null,{"$f":"COLUMN()","v":41},null,null,null,null,null,null,null,{"$f":"COLUMN()","v":49},null,null,{"$f":"COLUMN()","v":52},null,null,null,null,null,null,null,{"$f":"COLUMN()","v":60},null,null,null,null,null,null,null,null,null,null,null,null,null,{"$f":"COLUMN()","v":74}]
[null,null,{"$f":"10","v":10},null,null,{"$f":"10","v":10},null,null,null,null,null,null,null,null,null,null,null,null,null,null,null,null,null,{"$f":"10","v":10},null,{"$f":"10","v":10},null,null,null,null,null,null,null,null,null,null,null,{"$f":"10","v":10},null,null,{"$f":"10","v":10},null,null,null,null,null,null,null,{"$f":"10","v":10},null,null,{"$f":"10","v":10},null,null,null,null,null,null,null,{"$f":"10","v":10},null,null,null,null,null,null,null,null,null,null,null,null,null,{"$f":"10","v":10}]
[]
["E",null,null,null,null,null,null,null,null,null,null,null,null,null,null,null,null,null,null,null,null,null,null,null,null,null,null,null,null,null,null,null,null,null,null,null,null,null,null,null,null,null,null,null,null,null,null,null,null,null,null,null,null,null,null,null,null,null,null,null,null,null,null,null,null,null,null,null,null,null,null,null,null,null,null,null,null,null,null,null,10,"dénominateur"]
[null,null,null,null,null,null,null,null,null,1,null,null,null,null,null,null,null,null,null,2,null,null,null,null,null,null,null,null,null,3,null,null,null,null,null,null,null,null,null,4,null,null,null,null,null,null,null,null,null,5,null,null,null,null,null,null,null,null,null,6,null,null,null,null,null,null,null,null,null,7,null,null,null,null,null,null,null,null,null,null,10,"nombre de fractions sur la droite"]
[]
[]
[]
[]
[]
[]
[null,null,null,null,"↑",null,null,null,null,null,null,null,null,null,null,null,null,"↑",null,null,null,null,"↑",null,null,"↑",null,null,null,"↑",null,null,null,null,null,null,"↑",null,null,null,null,null,"↑",null,null,null,null,"↑",null,null,null,"↑",null,null,null,null,null,null,null,null,null,null,null,null,null,null,null,"↑"]
[null,null,null,null,{"$f":"COLUMN()","v":5},null,null,null,null,null,null,null,null,null,null,null,null,{"$f":"COLUMN()","v":18},null,null,null,null,{"$f":"COLUMN()","v":23},null,null,{"$f":"COLUMN()","v":26},null,null,null,{"$f":"COLUMN()","v":30},null,null,null,null,null,null,{"$f":"COLUMN()","v":37},null,null,null,null,null,{"$f":"COLUMN()","v":43},null,null,null,null,{"$f":"COLUMN()","v":48},null,null,null,{"$f":"COLUMN()","v":52},null,null,null,null,null,null,null,null,null,null,null,null,null,null,null,{"$f":"COLUMN()","v":68}]
[null,null,null,null,{"$f":"10","v":10},null,null,null,null,null,null,null,null,null,null,null,null,{"$f":"10","v":10},null,null,null,null,{"$f":"10","v":10},null,null,{"$f":"10","v":10},null,null,null,{"$f":"10","v":10},null,null,null,null,null,null,{"$f":"10","v":10},null,null,null,null,null,{"$f":"10","v":10},null,null,null,null,{"$f":"10","v":10},null,null,null,{"$f":"10","v":10},null,null,null,null,null,null,null,null,null,null,null,null,null,null,null,{"$f":"10","v":10}]
["A",null,null,null,null,null,null,null,null,null,null,null,null,null,null,null,null,null,null,null,null,null,null,null,null,null,null,null,null,null,null,null,null,null,null,null,null,null,null,null,null,null,null,null,null,null,null,null,null,null,null,null,null,null,null,null,null,null,null,null,null,null,null,null,null,null,null,null,null,null,null,null,{"$f":"$CO$1","v":"Fiche 756"}]
[null,null,null,null,null,null,null,null,null,1,null,null,null,null,null,null,null,null,null,2,null,null,null,null,null,null,null,null,null,3,null,null,null,null,null,null,null,null,null,4,null,null,null,null,null,null,null,null,null,5,null,null,null,null,null,null,null,null,null,6,null,null,null,null,null,null,null,null,null,7]
[]
[]
[]
[]
[]
[]
[null,null,null,null,null,null,null,null,null,"↑",null,null,null,null,null,null,null,null,null,null,null,null,"↑",null,null,null,null,null,null,null,null,"↑",null,null,null,null,null,null,null,"↑",null,null,null,null,null,"↑",null,null,null,null,null,"↑",null,null,"↑",null,null,null,null,null,null,"↑",null,null,null,"↑",null,null,null,null,null,null,null,null,"↑"]
[null,null,null,null,null,null,null,null,null,{"$f":"COLUMN()","v":10},null,null,null,null,null,null,null,null,null,null,null,null,{"$f":"COLUMN()","v":23},null,null,null,null,null,null,null,null,{"$f":"COLUMN()","v":32},null,null,null,null,null,null,null,{"$f":"COLUMN()","v":40},null,null,null,null,null,{"$f":"COLUMN()","v":46},null,null,null,null,null,{"$f":"COLUMN()","v":52},null,null,{"$f":"COLUMN()","v":55},null,null,null,null,null,null,{"$f":"COLUMN()","v":62},null,null,null,{"$f":"COLUMN()","v":66},null,null,null,null,null,null,null,null,{"$f":"COLUMN()","v":75}]
[null,null,null,null,null,null,null,null,null,{"$f":"10","v":10},null,null,null,null,null,null,null,null,null,null,null,null,{"$f":"10","v":10},null,null,null,null,null,null,null,null,{"$f":"10","v":10},null,null,null,null,null,null,null,{"$f":"10","v":10},null,null,null,null,null,{"$f":"10","v":10},null,null,null,null,null,{"$f":"10","v":10},null,null,{"$f":"10","v":10},null,null,null,null,null,null,{"$f":"10","v":10},null,null,null,{"$f":"10","v":10},null,null,null,null,null,null,null,null,{"$f":"10","v":10}]
[]
["B"]
[null,null,null,null,null,null,null,null,null,1,null,null,null,null,null,null,null,null,null,2,null,null,null,null,null,null,null,null,null,3,null,null,null,null,null,null,null,null,null,4,null,null,null,null,null,null,null,null,null,5,null,null,null,null,null,null,null,null,null,6,null,null,null,null,null,null,null,null,null,7]
[]
[]
[]
[]
[]
[]
[null,"↑",null,null,null,null,"↑",null,null,null,null,"↑",null,null,null,"↑",null,null,null,null,null,"↑",null,null,null,null,null,null,null,null,null,null,null,null,"↑",null,null,null,null,null,null,null,null,"↑",null,null,null,null,"↑",null,null,null,null,"↑",null,null,null,null,null,null,null,null,null,"↑"]
[null,{"$f":"COLUMN()","v":2},null,null,null,null,{"$f":"COLUMN()","v":7},null,null,null,null,{"$f":"COLUMN()","v":12},null,null,null,{"$f":"COLUMN()","v":16},null,null,null,null,null,{"$f":"COLUMN()","v":22},null,null,null,null,null,null,null,null,null,null,null,null,{"$f":"COLUMN()","v":35},null,null,null,null,null,null,null,null,{"$f":"COLUMN()","v":44},null,null,null,null,{"$f":"COLUMN()","v":49},null,null,null,null,{"$f":"COLUMN()","v":54},null,null,null,null,null,null,null,null,null,{"$f":"COLUMN()","v":64}]
[null,{"$f":"10","v":10},null,null,null,null,{"$f":"10","v":10},null,null,null,null,{"$f":"10","v":10},null,null,null,{"$f":"10","v":10},null,null,null,null,null,{"$f":"10","v":10},null,null,null,null,null,null,null,null,null,null,null,null,{"$f":"10","v":10},null,null,null,null,null,null,null,null,{"$f":"10","v":10},null,null,null,null,{"$f":"10","v":10},null,null,null,null,{"$f":"10","v":10},null,null,null,null,null,null,null,null,null,{"$f":"10","v":10}]
[]
["C"]
[null,null,null,null,null,null,null,null,null,1,null,null,null,null,null,null,null,null,null,2,null,null,null,null,null,null,null,null,null,3,null,null,null,null,null,null,null,null,null,4,null,null,null,null,null,null,null,null,null,5,null,null,null,null,null,null,null,null,null,6,null,null,null,null,null,null,null,null,null,7]
[]
[]
[]
[]
[]
[]
[null,null,null,null,null,null,"↑",null,null,null,"↑",null,null,"↑",null,null,null,null,null,null,null,null,null,null,null,null,null,null,null,null,null,"↑",null,null,null,null,null,"↑",null,null,null,null,null,null,null,"↑",null,null,null,null,null,null,null,null,null,null,null,null,null,null,null,null,null,"↑",null,null,null,null,null,null,null,"↑",null,null,"↑",null,null,"↑"]
[null,null,null,null,null,null,{"$f":"COLUMN()","v":7},null,null,null,{"$f":"COLUMN()","v":11},null,null,{"$f":"COLUMN()","v":14},null,null,null,null,null,null,null,null,null,null,null,null,null,null,null,null,null,{"$f":"COLUMN()","v":32},null,null,null,null,null,{"$f":"COLUMN()","v":38},null,null,null,null,null,null,null,{"$f":"COLUMN()","v":46},null,null,null,null,null,null,null,null,null,null,null,null,null,null,null,null,null,{"$f":"COLUMN()","v":64},null,null,null,null,null,null,null,{"$f":"COLUMN()","v":72},null,null,{"$f":"COLUMN()","v":75},null,null,{"$f":"COLUMN()","v":78}]
[null,null,null,null,null,null,{"$f":"10","v":10},null,null,null,{"$f":"10","v":10},null,null,{"$f":"10","v":10},null,null,null,null,null,null,null,null,null,null,null,null,null,null,null,null,null,{"$f":"10","v":10},null,null,null,null,null,{"$f":"10","v":10},null,null,null,null,null,null,null,{"$f":"10","v":10},null,null,null,null,null,null,null,null,null,null,null,null,null,null,null,null,null,{"$f":"10","v":10},null,null,null,null,null,null,null,{"$f":"10","v":10},null,null,{"$f":"10","v":10},null,null,{"$f":"10","v":10}]
[]
["D"]
[null,null,null,null,null,null,null,null,null,1,null,null,null,null,null,null,null,null,null,2,null,null,null,null,null,null,null,null,null,3,null,null,null,null,null,null,null,null,null,4,null,null,null,null,null,null,null,null,null,5,null,null,null,null,null,null,null,null,null,6,null,null,null,null,null,null,null,null,null,7]
[]
[]
[]
[]
[]
[]
[null,null,"↑",null,null,"↑",null,null,null,null,null,null,null,null,null,null,null,null,null,null,null,null,null,"↑",null,"↑",null,null,null,null,null,null,null,null,null,null,null,"↑",null,null,"↑",null,null,null,null,null,null,null,"↑",null,null,"↑",null,null,null,null,null,null,null,"↑",null,null,null,null,null,null,null,null,null,null,null,null,null,"↑"]
[null,null,{"$f":"COLUMN()","v":3},null,null,{"$f":"COLUMN()","v":6},null,null,null,null,null,null,null,null,null,null,null,null,null,null,null,null,null,{"$f":"COLUMN()","v":24},null,{"$f":"COLUMN()","v":26},null,null,null,null,null,null,null,null,null,null,null,{"$f":"COLUMN()","v":38},null,null,{"$f":"COLUMN()","v":41},null,null,null,null,null,null,null,{"$f":"COLUMN()","v":49},null,null,{"$f":"COLUMN()","v":52},null,null,null,null,null,null,null,{"$f":"COLUMN()","v":60},null,null,null,null,null,null,null,null,null,null,null,null,null,{"$f":"COLUMN()","v":74}]
[null,null,{"$f":"10","v":10},null,null,{"$f":"10","v":10},null,null,null,null,null,null,null,null,null,null,null,null,null,null,null,null,null,{"$f":"10","v":10},null,{"$f":"10","v":10},null,null,null,null,null,null,null,null,null,null,null,{"$f":"10","v":10},null,null,{"$f":"10","v":10},null,null,null,null,null,null,null,{"$f":"10","v":10},null,null,{"$f":"10","v":10},null,null,null,null,null,null,null,{"$f":"10","v":10},null,null,null,null,null,null,null,null,null,null,null,null,null,{"$f":"10","v":10}]
[]
["E"]
[null,null,null,null,null,null,null,null,null,1,null,null,null,null,null,null,null,null,null,2,null,null,null,null,null,null,null,null,null,3,null,null,null,null,null,null,null,null,null,4,null,null,null,null,null,null,null,null,null,5,null,null,null,null,null,null,null,null,null,6,null,null,null,null,null,null,null,null,null,7]
[]
[]
[]
[]
[]
[]
[null,null,null,null,"↑",null,null,null,null,null,null,null,null,null,null,null,null,"↑",null,null,null,null,"↑",null,null,"↑",null,null,null,"↑",null,null,null,null,null,null,"↑",null,null,null,null,null,"↑",null,null,null,null,"↑",null,null,null,"↑",null,null,null,null,null,null,null,null,null,null,null,null,null,null,null,"↑"]
[null,null,null,null,{"$f":"COLUMN()","v":5},null,null,null,null,null,null,null,null,null,null,null,null,{"$f":"COLUMN()","v":18},null,null,null,null,{"$f":"COLUMN()","v":23},null,null,{"$f":"COLUMN()","v":26},null,null,null,{"$f":"COLUMN()","v":30},null,null,null,null,null,null,{"$f":"COLUMN()","v":37},null,null,null,null,null,{"$f":"COLUMN()","v":43},null,null,null,null,{"$f":"COLUMN()","v":48},null,null,null,{"$f":"COLUMN()","v":52},null,null,null,null,null,null,null,null,null,null,null,null,null,null,null,{"$f":"COLUMN()","v":68}]
[null,null,null,null,{"$f":"10","v":10},null,null,null,null,null,null,null,null,null,null,null,null,{"$f":"10","v":10},null,null,null,null,{"$f":"10","v":10},null,null,{"$f":"10","v":10},null,null,null,{"$f":"10","v":10},null,null,null,null,null,null,{"$f":"10","v":10},null,null,null,null,null,{"$f":"10","v":10},null,null,null,null,{"$f":"10","v":10},null,null,null,{"$f":"10","v":10},null,null,null,null,null,null,null,null,null,null,null,null,null,null,null,{"$f":"10","v":10}]